bitfinex/quotes_BTCUSD_20251230
["timestamp","ask_amount","ask_price","bid_price","bid_amount"]
[1767082926934,0.000549,87856.0,87847.0,0.01138342]
[1767082927082,0.000549,87856.0,87848.0,0.01138329]
[1767082927298,0.02277087,87858.0,87845.0,0.02298368]
[1767082927552,0.02277087,87858.0,87847.0,0.01138342]
[1767082927760,0.02277087,87858.0,87847.0,0.00795331]
[1767082927972,0.02297087,87858.0,87845.0,0.0116]
[1767082928158,0.02297087,87858.0,87845.0,0.02298368]
[1767082928356,0.02297087,87858.0,87846.0,0.02298355]
[1767082928686,0.02297087,87858.0,87847.0,0.0116]
[1767082928889,0.02297087,87858.0,87850.0,0.01138303]
[1767082929087,0.02297087,87858.0,87853.0,0.01138265]
[1767082929936,0.0002,87858.0,87854.0,0.01138252]
[1767082930144,0.0002,87858.0,87855.0,0.06829434]
[1767082930356,0.00077936,87855.0,87838.0,0.01158459]
[1767082930557,0.000549,87855.0,87846.0,0.01138355]
[1767082930671,0.000549,87855.0,87845.0,0.02388437]
[1767082930672,0.000549,87855.0,87845.0,0.01250069]
[1767082930883,0.02277087,87857.0,87846.0,0.01138355]
[1767082931314,0.02277087,87857.0,87845.0,0.02388437]
[1767082931666,0.02277087,87857.0,87847.0,0.01138342]
[1767082931826,0.02277087,87857.0,87845.0,0.02388437]
[1767082932029,0.02277087,87857.0,87845.0,0.01195169]
[1767082932612,0.02277087,87857.0,87849.0,0.01138316]
[1767082932814,0.0116,87856.0,87845.0,0.01195169]
[1767082933973,0.0116,87856.0,87845.0,0.01140169]
[1767082935114,0.02277087,87857.0,87845.0,0.01140169]
[1767082935326,0.01156,87858.0,87856.0,0.000549]
[1767082935533,0.01156,87858.0,87857.0,0.00055]
[1767082936440,0.01156,87858.0,87846.0,0.01138355]
[1767082936646,0.02277087,87853.0,87846.0,0.01138355]
[1767082936796,0.02167187,87853.0,87849.0,0.01138316]
[1767082936997,0.02167187,87853.0,87850.0,0.01138303]
[1767082937206,0.00076189,87850.0,87849.0,0.01138316]
[1767082937528,0.000549,87849.0,87846.0,0.01156]
[1767082937863,0.02167187,87853.0,87847.0,0.01138342]
[1767082938063,0.02167187,87853.0,87846.0,0.02294355]
[1767082938274,0.02167187,87853.0,87846.0,0.01156]
[1767082939072,0.001099,87846.0,87821.0,0.01138679]
[1767082939245,0.02277087,87839.0,87820.0,0.01138692]
[1767082939446,0.02277087,87839.0,87825.0,0.01138627]
[1767082939599,0.02277087,87839.0,87826.0,0.01138614]
[1767082939799,0.02277087,87839.0,87822.0,0.01138666]
[1767082940044,0.02277087,87839.0,87818.0,0.01156]
[1767082940045,0.02277087,87839.0,87828.0,0.01138589]
[1767082940206,0.02277087,87839.0,87823.0,0.0002]
[1767082940388,0.02277087,87839.0,87825.0,0.01138627]
[1767082940593,0.02277087,87839.0,87826.0,0.01138614]
[1767082940870,0.01156,87838.0,87827.0,0.01138602]
[1767082941144,0.01156,87838.0,87823.0,0.0002]
[1767082941400,0.01156,87838.0,87825.0,0.01138627]
[1767082941584,0.01156,87838.0,87823.0,0.01158653]
[1767082941788,0.01156,87838.0,87823.0,0.06851882]
[1767082941991,0.01156,87838.0,87827.0,0.01138602]
[1767082942238,0.01156,87849.0,87831.0,0.0113855]
[1767082942370,0.01057262,87848.0,87838.0,0.0002]
[1767082942572,0.02277087,87843.0,87838.0,0.0002]
[1767082942857,0.02277087,87843.0,87835.0,0.01138498]
[1767082943066,0.02287846,87859.0,87842.0,0.01138407]
[1767082943267,0.02287846,87859.0,87843.0,0.01138394]
[1767082943268,0.02213335,87858.0,87843.0,0.01138394]
[1767082943477,0.000349,87843.0,87837.0,0.0683079]
[1767082943610,0.000349,87843.0,87839.0,0.13898]
[1767082943809,0.01156,87858.0,87839.0,0.13898]
[1767082944207,0.01156,87858.0,87829.0,0.01138576]
[1767082944414,0.02277087,87845.0,87834.0,0.01138511]
[1767082944611,0.02277087,87845.0,87830.0,0.01156]
[1767082944982,0.02277087,87845.0,87821.0,0.01138679]
[1767082945199,0.000349,87830.0,87821.0,0.01138679]
[1767082945408,0.01156,87840.0,87828.0,0.01138589]
[1767082945578,0.01156,87840.0,87826.0,0.01138614]
[1767082945777,0.01156,87840.0,87827.0,0.01138602]
[1767082945956,0.01156,87840.0,87828.0,0.01138589]
[1767082946135,0.01156,87840.0,87827.0,0.01138602]
[1767082946336,0.01166755,87840.0,87824.0,0.0113864]
[1767082946746,0.02277087,87831.0,87823.0,0.0002]
[1767082946948,0.02277087,87830.0,87823.0,0.0002]
[1767082947553,0.01156,87837.0,87826.0,0.01138614]
[1767082947755,0.01156,87837.0,87824.0,0.0113864]
[1767082947756,0.01156,87837.0,87825.0,0.01138627]
[1767082947962,0.01156,87837.0,87829.0,0.01138576]
[1767082948196,0.01156,87837.0,87833.0,0.01138524]
[1767082948197,0.01136,87837.0,87833.0,0.01138524]
[1767082948404,0.00071294,87836.0,87832.0,0.13898]
[1767082948570,0.01136,87837.0,87832.0,0.13898]
[1767082949081,0.01136,87837.0,87830.0,0.01138563]
[1767082949280,0.01136,87837.0,87828.0,0.01138589]
[1767082949489,0.01138161,87861.0,87827.0,0.01138602]
[1767082949490,0.04556,87855.0,87838.0,0.01138459]
[1767082949755,0.01156,87854.0,87839.0,0.01138446]
[1767082949938,0.01156,87854.0,87838.0,0.01174201]
[1767082949939,0.000549,87839.0,87838.0,0.00035742]
[1767082950080,0.02277087,87845.0,87838.0,4.2e-07]
[1767082950512,0.03433087,87845.0,87838.0,4.2e-07]
[1767082951126,0.02277087,87859.0,87838.0,4.2e-07]
[1767082951127,0.02446949,87854.0,87838.0,4.2e-07]
[1767082951361,0.01156,87853.0,87845.0,0.000357]
[1767082951773,0.01156,87853.0,87843.0,0.01138394]
[1767082952183,0.01156,87853.0,87842.0,0.01138407]
[1767082952528,0.01156,87853.0,87840.0,0.01138433]
[1767082952723,0.01156,87853.0,87838.0,4.2e-07]
[1767082953153,0.01063223,87852.0,87838.0,4.2e-07]
[1767082953363,0.01063223,87851.0,87838.0,0.01138501]
[1767082953637,0.02277087,87850.0,87839.0,0.01138446]
[1767082953862,0.02277087,87850.0,87838.0,4.2e-07]
[1767082954082,0.02277087,87850.0,87838.0,0.01138501]
[1767082954405,0.0106502,87849.0,87838.0,4.2e-07]
[1767082954598,0.0106502,87848.0,87838.0,4.2e-07]
[1767082954761,0.02277087,87850.0,87838.0,4.2e-07]
[1767082954941,0.01065019,87849.0,87838.0,4.2e-07]
[1767082955143,0.01065019,87848.0,87838.0,4.2e-07]
[1767082955397,0.01065199,87847.0,87838.0,4.2e-07]
[1767082955592,0.01065199,87846.0,87838.0,4.2e-07]
[1767082955855,0.01065206,87845.0,87838.0,4.2e-07]
[1767082955986,0.02277087,87850.0,87838.0,4.2e-07]
[1767082956189,0.01065228,87849.0,87838.0,0.01138501]
[1767082956409,0.01065228,87848.0,87838.0,4.2e-07]
[1767082956640,0.01065228,87847.0,87838.0,0.01138501]
[1767082956822,0.02277087,87850.0,87838.0,4.2e-07]
[1767082957027,0.01065199,87849.0,87838.0,4.2e-07]
[1767082957218,0.01065199,87848.0,87838.0,0.01138501]
[1767082957399,0.01065199,87847.0,87838.0,4.2e-07]
[1767082957643,0.02277087,87850.0,87838.0,4.2e-07]
[1767082957820,0.0106528,87849.0,87838.0,4.2e-07]
[1767082958031,0.0106528,87848.0,87838.0,4.2e-07]
[1767082958231,0.0106528,87847.0,87838.0,0.01138501]
[1767082958469,0.02277087,87850.0,87839.0,0.01138446]
[1767082958668,0.01065328,87849.0,87839.0,0.01138446]
[1767082958872,0.01065328,87848.0,87842.0,0.01138407]
[1767082959008,0.02277087,87850.0,87841.0,0.0113842]
[1767082959209,0.01065315,87849.0,87840.0,0.01138433]
[1767082959411,0.01065315,87848.0,87841.0,0.0113842]
[1767082959686,0.01029615,87847.0,87843.0,0.01138394]
[1767082959809,0.02277087,87850.0,87839.0,0.01138446]
[1767082960004,0.00074091,87844.0,87840.0,0.01138433]
[1767082960234,0.01156,87852.0,87845.0,0.01138368]
[1767082960451,0.02272834,87851.0,87839.0,0.01138446]
[1767082960673,0.000549,87845.0,87837.0,0.0002]
[1767082960825,0.000549,87845.0,87838.0,0.01138501]
[1767082961043,0.02272834,87851.0,87839.0,0.01138446]
[1767082961247,0.02272834,87851.0,87840.0,0.01138433]
[1767082961811,0.02272834,87851.0,87842.0,0.01138407]
[1767082962238,0.01156,87852.0,87842.0,0.01138407]
[1767082962384,0.02277087,87851.0,87838.0,4.2e-07]
[1767082962597,0.02277087,87851.0,87839.0,0.01138446]
[1767082963108,0.02298487,87851.0,87838.0,0.01138501]
[1767082963291,0.02298487,87851.0,87839.0,0.01138446]
[1767082963933,0.02298487,87851.0,87840.0,0.01138433]
[1767082964313,0.02298487,87851.0,87838.0,0.01138501]
[1767082964664,0.02298487,87851.0,87839.0,0.01138446]
[1767082965418,0.00073042,87841.0,87840.0,0.01138433]
[1767082965616,0.00073042,87841.0,87839.0,0.01138446]
[1767082965831,0.02298487,87851.0,87839.0,0.01138446]
[1767082966326,0.02298487,87851.0,87840.0,0.01138433]
[1767082966762,0.02298487,87851.0,87842.0,0.01138407]
[1767082966991,0.02298487,87851.0,87843.0,0.01138394]
[1767082967537,0.02298487,87851.0,87842.0,0.01138407]
[1767082968004,0.02298487,87851.0,87840.0,0.01138433]
[1767082968604,0.02298487,87851.0,87841.0,0.0113842]
[1767082968962,0.02298487,87851.0,87840.0,0.52507653]
[1767082969163,0.000214,87851.0,87842.0,0.01138407]
[1767082969480,0.000214,87851.0,87840.0,0.5136922]
[1767082969708,0.02277087,87850.0,87840.0,0.5136922]
[1767082970104,0.02298487,87850.0,87840.0,0.5136922]
[1767082970263,0.02298487,87850.0,87840.0,0.52507653]
[1767082970462,0.02298487,87850.0,87841.0,0.0113842]
[1767082970683,0.02298487,87850.0,87839.0,0.01138446]
[1767082970944,0.02298487,87850.0,87838.0,0.01138501]
[1767082971145,0.02298487,87850.0,87839.0,0.01138446]
[1767082971304,0.02298487,87850.0,87841.0,0.0113842]
[1767082971668,0.01066242,87849.0,87841.0,0.0113842]
[1767082971877,0.01066242,87848.0,87840.0,0.01138433]
[1767082972087,0.00073392,87842.0,87840.0,0.01138433]
[1767082972282,0.000214,87848.0,87838.0,0.01138501]
[1767082972485,0.01066348,87847.0,87839.0,0.01138446]
[1767082972707,0.01066348,87846.0,87839.0,0.01138446]
[1767082972910,0.000214,87848.0,87840.0,0.01138433]
[1767082973088,0.000214,87848.0,87843.0,0.01138394]
[1767082973089,0.01066349,87847.0,87843.0,0.01138394]
[1767082973304,0.01066349,87846.0,87842.0,0.01138407]
[1767082973512,0.000214,87848.0,87842.0,0.01138407]
[1767082973708,0.01066347,87847.0,87842.0,0.01138407]
[1767082973936,0.000214,87848.0,87842.0,0.01138407]
[1767082973937,0.01066347,87846.0,87842.0,0.01138407]
[1767082974111,0.000214,87846.0,87843.0,0.01138394]
[1767082974328,0.03070226,87861.0,87846.0,0.06830131]
[1767082974545,0.0004039,87862.0,87847.0,0.01138342]
[1767082974546,0.0222235,87856.0,87847.0,0.01138342]
[1767082974741,0.0106635,87855.0,87847.0,0.01138342]
[1767082975100,0.0106635,87854.0,87847.0,0.01138342]
[1767082975302,0.0106635,87853.0,87847.0,0.01138342]
[1767082975511,0.0106635,87852.0,87849.0,0.01138316]
[1767082975714,0.0106635,87852.0,87847.0,0.01138342]
[1767082975715,0.0106635,87851.0,87848.0,0.01138329]
[1767082975918,0.01156,87856.0,87848.0,0.01138329]
[1767082976141,0.0106634,87855.0,87845.0,0.01138368]
[1767082976344,0.0106634,87854.0,87846.0,0.01138355]
[1767082976554,0.0106634,87853.0,87842.0,0.01138407]
[1767082976765,0.000549,87846.0,87841.0,0.0113842]
[1767082976968,0.000549,87846.0,87837.0,0.01158472]
[1767082977169,0.02277087,87853.0,87837.0,0.01158472]
[1767082977376,0.01066769,87852.0,87837.0,0.01158472]
[1767082977577,0.00073042,87841.0,87837.0,0.01158472]
[1767082977795,0.02277087,87853.0,87837.0,0.01158472]
[1767082977969,0.02277087,87853.0,87838.0,0.01138501]
[1767082977970,0.01066769,87852.0,87838.0,0.01138501]
[1767082978113,0.01066769,87851.0,87839.0,0.01138446]
[1767082978311,0.01066769,87850.0,87838.0,4.2e-07]
[1767082978511,0.02331987,87839.0,87838.0,4.2e-07]
[1767082978758,0.02277087,87839.0,87838.0,4.2e-07]
[1767082978912,0.01156,87849.0,87838.0,4.2e-07]
[1767082979109,0.01067034,87848.0,87838.0,4.2e-07]
[1767082979418,0.01156,87849.0,87838.0,4.2e-07]
[1767082979842,0.01156,87849.0,87838.0,0.01138501]
[1767082980067,0.01156,87849.0,87838.0,4.2e-07]
[1767082980264,0.00054858,87838.0,87837.0,0.0002]
[1767082980438,0.00035842,87838.0,87837.0,0.0002]
[1767082980689,0.00035842,87838.0,87823.0,0.0002]
[1767082980890,0.02277087,87836.0,87823.0,0.0002]
[1767082981209,0.02277087,87835.0,87823.0,0.0002]
[1767082981388,0.02277087,87835.0,87811.0,0.01138809]
[1767082981585,0.0002,87833.0,87816.0,0.01138744]
[1767082981810,0.0002,87833.0,87814.0,0.0113877]
[1767082982015,0.0002,87833.0,87815.0,0.01138757]
[1767082982215,0.0002,87833.0,87825.0,0.01138627]
[1767082982430,0.02457821,87849.0,87833.0,0.01158524]
[1767082982631,0.01066855,87848.0,87839.0,0.5136922]
[1767082982869,0.01156,87848.0,87839.0,0.00010755]
[1767082983269,0.01821421,87845.0,87839.0,0.00010755]
[1767082985345,0.01569782,87845.0,87839.0,0.01149201]
[1767082986500,0.02457821,87860.0,87845.0,0.000401]
[1767082986501,0.01821421,87858.0,87845.0,0.000401]
[1767082986800,0.0222263,87856.0,87839.0,0.00010755]
[1767082987065,0.01821421,87844.0,87839.0,5.5e-07]
[1767082987268,0.01156,87843.0,87811.0,0.1365]
[1767082987467,0.01821421,87828.0,87811.0,0.1365]
[1767082987645,0.01821421,87814.0,87800.0,0.0029]
[1767082987842,0.01821421,87814.0,87802.0,0.01138926]
[1767082987843,0.02977421,87814.0,87802.0,0.01138926]
[1767082988195,0.02977421,87814.0,87800.0,0.5165922]
[1767082988196,0.01366618,87811.0,87800.0,0.52798172]
[1767082988430,0.01366618,87811.0,87800.0,0.01428952]
[1767082988607,0.01366618,87811.0,87800.0,0.00235]
[1767082988844,0.5136922,87810.0,87800.0,0.00270842]
[1767082989044,0.01366618,87811.0,87800.0,0.00270842]
[1767082989872,0.01156,87810.0,87800.0,0.00270842]
[1767082990046,0.01366618,87811.0,87800.0,0.00270842]
[1767082990191,0.01156,87809.0,87800.0,0.00270842]
[1767082990386,0.011011,87808.0,87803.0,0.01138913]
[1767082990595,0.02452112,87826.0,87800.0,0.00270842]
[1767082990801,0.01366618,87813.0,87801.0,0.01138939]
[1767082991021,0.01156,87812.0,87804.0,0.011389]
[1767082991243,0.02467618,87812.0,87804.0,0.011389]
[1767082991572,0.01366618,87812.0,87801.0,0.01138939]
[1767082991934,0.01366618,87812.0,87800.0,0.00270842]
[1767082992333,0.5136922,87810.0,87800.0,0.00160942]
[1767082992531,0.01366618,87812.0,87800.0,0.00160942]
[1767082993703,0.00059049,87801.0,87800.0,0.00160942]
[1767082994236,4.149e-05,87801.0,87800.0,0.00160942]
[1767082994463,0.01366618,87812.0,87800.0,0.00160942]
[1767082994668,0.01156,87806.0,87800.0,0.00160942]
[1767082996151,0.01156,87807.0,87806.0,0.00055]
[1767082996569,0.01156,87807.0,87800.0,0.00160942]
[1767082996782,0.05692898,87829.0,87800.0,0.00160942]
[1767082996783,0.03065095,87846.0,87824.0,0.0113864]
[1767082997048,0.01366618,87840.0,87830.0,0.5136922]
[1767082997255,0.000549,87824.0,87821.0,0.01138679]
[1767082997462,0.52735838,87840.0,87814.0,0.0113877]
[1767082997463,0.01366618,87840.0,87828.0,0.01138589]
[1767082997674,0.0002,87834.0,87830.0,0.01138563]
[1767082997873,0.01156,87839.0,87827.0,0.01138602]
[1767082998007,0.01156,87839.0,87826.0,0.01138614]
[1767082998202,0.01166749,87839.0,87827.0,0.01138602]
[1767082998928,0.01166749,87839.0,87826.0,0.01138614]
[1767082999092,0.01166749,87839.0,87825.0,0.01138627]
[1767082999289,0.01166749,87839.0,87826.0,0.01138614]
[1767082999551,0.01166749,87839.0,87827.0,0.01138602]
[1767082999760,0.01166749,87839.0,87829.0,0.01138576]
[1767083000175,0.01166749,87839.0,87830.0,0.01138563]
[1767083000335,0.01166749,87839.0,87832.0,0.01138537]
[1767083000336,0.02432718,87838.0,87832.0,0.01138537]
[1767083000737,0.02432718,87838.0,87831.0,0.0113855]
[1767083000983,0.02432718,87838.0,87830.0,0.01131563]
[1767083001200,0.01156,87837.0,87832.0,0.01138537]
[1767083001321,0.01156,87837.0,87831.0,0.0113855]
[1767083001522,0.01156,87837.0,87832.0,0.01138537]
[1767083001888,0.01156,87837.0,87833.0,0.01138524]
[1767083002108,0.01366618,87836.0,87834.0,0.01138511]
[1767083002309,0.01156,87835.0,87834.0,0.01138511]
[1767083002457,0.01156,87835.0,87832.0,0.01138537]
[1767083002649,0.01366618,87836.0,87833.0,0.01138524]
[1767083002847,0.01156,87835.0,87833.0,0.01138524]
[1767083003051,0.01156,87835.0,87832.0,0.01138537]
[1767083003757,0.01156,87834.0,87833.0,0.01138524]
[1767083003958,0.00010749,87839.0,87836.0,0.01138485]
[1767083004163,0.01156,87838.0,87836.0,0.01138485]
[1767083004483,0.01156,87838.0,87835.0,0.01138498]
[1767083004693,0.01156,87838.0,87835.0,0.15992498]
[1767083005094,0.00010749,87839.0,87835.0,0.15992498]
[1767083005095,0.00010749,87839.0,87837.0,0.05692355]
[1767083005252,0.04556,87849.0,87842.0,0.01138407]
[1767083005452,0.01366618,87844.0,87839.0,0.01138446]
[1767083005734,0.01366618,87844.0,87838.0,0.01138459]
[1767083006027,0.01366618,87844.0,87840.0,0.01138433]
[1767083006167,0.01156,87843.0,87840.0,0.01138433]
[1767083006373,0.01156,87843.0,87838.0,0.01138459]
[1767083006571,0.01156,87843.0,87839.0,0.01138446]
[1767083006982,0.01156,87843.0,87838.0,0.01138459]
[1767083007603,0.01156,87842.0,87839.0,0.01138446]
[1767083008009,0.01156,87841.0,87839.0,0.01138446]
[1767083008881,0.01156,87841.0,87839.0,0.0683067]
[1767083009082,0.01156,87841.0,87839.0,0.2168467]
[1767083009283,0.0002,87857.0,87846.0,0.01138355]
[1767083009483,0.0002,87857.0,87845.0,0.01138368]
[1767083009484,0.01156,87856.0,87845.0,0.01138368]
[1767083009694,0.0002,87857.0,87845.0,0.01138368]
[1767083010121,0.01156,87856.0,87846.0,0.01138355]
[1767083010275,0.0002,87857.0,87854.0,0.01138252]
[1767083010487,0.001099,87854.0,87848.0,0.01138329]
[1767083010690,0.01156,87853.0,87849.0,0.01138316]
[1767083010896,0.01156,87852.0,87849.0,0.01138316]
[1767083011091,0.01156,87852.0,87848.0,0.01138329]
[1767083011421,0.0002,87857.0,87848.0,0.01138329]
[1767083011570,0.01156,87851.0,87849.0,0.01138316]
[1767083012395,0.0002,87857.0,87850.0,0.01138303]
[1767083012711,0.01156,87851.0,87850.0,0.01138303]
[1767083012920,0.01156,87851.0,87848.0,0.01138329]
[1767083013137,0.0002,87857.0,87850.0,0.01138303]
[1767083013348,0.01156,87856.0,87853.0,0.01138265]
[1767083013748,0.0002,87857.0,87854.0,0.01138252]
[1767083013902,0.01156,87856.0,87854.0,0.01138252]
[1767083014113,0.0002,87857.0,87854.0,0.01138252]
[1767083014114,1e-08,87857.0,87856.0,0.14854]
[1767083014338,0.00024153,87870.0,87861.0,0.01138161]
[1767083014549,0.01366618,87864.0,87859.0,0.15992187]
[1767083014868,0.0002,87867.0,87861.0,0.01138161]
[1767083015111,0.0002,87867.0,87864.0,0.01138122]
[1767083015306,0.00034906,87870.0,87866.0,0.14854]
[1767083015455,0.00034906,87870.0,87866.0,0.147991]
[1767083016429,0.00034906,87870.0,87866.0,0.01138096]
[1767083016625,0.00034906,87870.0,87867.0,0.01138083]
[1767083016856,6e-08,87870.0,87867.0,0.21682492]
[1767083017378,6e-08,87870.0,87869.0,0.05690288]
[1767083017559,6e-08,87870.0,87869.0,0.20544288]
[1767083018075,6e-08,87870.0,87869.0,0.148191]
[1767083020525,0.0002,87880.0,87869.0,0.148191]
[1767083020733,0.01366618,87875.0,87869.0,0.15957157]
[1767083021392,0.01366618,87875.0,87869.0,0.148191]
[1767083021576,0.0002,87880.0,87869.0,0.14814963]
[1767083021796,0.0002,87880.0,87875.0,0.000549]
[1767083022211,0.0002,87880.0,87869.0,0.01138057]
[1767083022398,0.0002,87880.0,87868.0,0.1599207]
[1767083022574,0.00055,87869.0,87868.0,0.14854]
[1767083022778,0.01366618,87875.0,87865.0,0.1477]
[1767083023006,0.01366618,87875.0,87865.0,0.15908109]
[1767083023205,0.0002,87880.0,87867.0,0.01138083]
[1767083023473,0.01366618,87875.0,87868.0,0.0113807]
[1767083024082,0.01366618,87875.0,87869.0,0.01138057]
[1767083024495,0.0002,87880.0,87869.0,0.06828329]
[1767083024705,1e-07,87876.0,87875.0,0.149089]
[1767083024910,1e-07,87876.0,87875.0,0.14854]
[1767083026006,1e-07,87876.0,87875.0,0.205439]
[1767083026836,1e-07,87876.0,87875.0,0.14854]
[1767083027893,1e-07,87876.0,87875.0,0.205439]
[1767083028503,1e-07,87876.0,87875.0,0.056899]
[1767083030245,0.0004,87899.0,87888.0,0.01137811]
[1767083030442,0.00055,87888.0,87886.0,0.01137837]
[1767083030672,0.00055,87888.0,87884.0,0.01137863]
[1767083031115,0.01156,87898.0,87885.0,0.0113785]
[1767083031296,0.01156,87898.0,87884.0,0.01137863]
[1767083032068,0.01156,87898.0,87885.0,0.0113785]
[1767083032489,0.00055,87885.0,87876.0,0.01137967]
[1767083032694,0.01366618,87887.0,87876.0,0.01137967]
[1767083033127,0.01366618,87887.0,87877.0,0.01137954]
[1767083033818,0.01366618,87887.0,87878.0,0.01137941]
[1767083033995,0.01366618,87887.0,87876.0,0.06827796]
[1767083033996,0.01366618,87887.0,87876.0,0.01137967]
[1767083034727,0.01366618,87887.0,87875.0,0.0113798]
[1767083034933,0.01366618,87887.0,87876.0,0.01137967]
[1767083035096,0.01366618,87887.0,87875.0,0.0113798]
[1767083035480,0.01366618,87887.0,87876.0,0.01137967]
[1767083036038,0.01366618,87887.0,87871.0,0.01138031]
[1767083036039,0.00055,87876.0,87871.0,0.01138031]
[1767083036351,0.01366618,87887.0,87871.0,0.01138031]
[1767083036705,0.01366618,87887.0,87872.0,0.01138018]
[1767083037332,0.01366618,87887.0,87871.0,0.01138031]
[1767083037565,0.0106277,87886.0,87870.0,0.01138044]
[1767083037770,0.0106277,87886.0,87863.0,0.1477]
[1767083037771,0.02214776,87885.0,87863.0,0.1477]
[1767083037936,0.01366618,87873.0,87865.0,0.01138109]
[1767083038139,0.01366618,87873.0,87866.0,0.01138096]
[1767083038590,0.01366618,87873.0,87867.0,0.01138083]
[1767083039336,0.01366618,87873.0,87868.0,0.0113807]
[1767083039525,0.01366618,87873.0,87867.0,0.01138083]
[1767083039526,0.01366618,87873.0,87865.0,0.01138109]
[1767083040155,0.01366618,87873.0,87866.0,0.01138096]
[1767083040351,0.01366618,87873.0,87865.0,0.01138109]
[1767083040601,0.01366618,87873.0,87862.0,0.01138148]
[1767083040752,0.01152,87885.0,87866.0,0.01138096]
[1767083040962,0.01064054,87884.0,87867.0,0.01138083]
[1767083041186,0.01064054,87883.0,87866.0,0.01138096]
[1767083041359,0.01064054,87882.0,87867.0,0.01138083]
[1767083041642,0.01064054,87881.0,87869.0,0.01138057]
[1767083041792,0.01064054,87880.0,87868.0,0.0113807]
[1767083042002,0.01177669,87899.0,87868.0,0.0113807]
[1767083042003,0.02448499,87891.0,87880.0,0.000549]
[1767083042347,0.02448499,87898.0,87891.0,0.00055]
[1767083042476,0.01366618,87897.0,87883.0,0.01137876]
[1767083042683,0.01377369,87897.0,87885.0,0.0002]
[1767083047273,0.01377369,87897.0,87885.0,0.0115785]
[1767083047482,0.01377369,87897.0,87886.0,0.01137837]
[1767083048090,0.01377369,87897.0,87885.0,0.0115785]
[1767083048275,0.01377369,87897.0,87885.0,0.0002]
[1767083049529,0.0002,87885.0,87873.0,0.01138005]
[1767083049762,0.00035,87875.0,87872.0,0.0002]
[1767083049984,0.01152,87878.0,87872.0,0.0002]
[1767083050585,0.01152,87878.0,87862.0,0.01138148]
[1767083050724,0.01152,87878.0,87863.0,0.01138135]
[1767083050958,0.01820437,87881.0,87872.0,0.01138018]
[1767083051157,0.03085095,87892.0,87878.0,0.000199]
[1767083051356,0.01152,87886.0,87878.0,0.000199]
[1767083051623,0.01820437,87885.0,87869.0,0.01138057]
[1767083051917,0.01820437,87885.0,87868.0,0.0229007]
[1767083052062,0.01820437,87885.0,87869.0,0.01138057]
[1767083052492,0.01820437,87885.0,87868.0,0.0229007]
[1767083052863,0.01820437,87885.0,87871.0,0.01138031]
[1767083053062,0.01800537,87884.0,87873.0,0.01138005]
[1767083053316,0.01800537,87884.0,87867.0,0.01138083]
[1767083053483,0.01800537,87884.0,87871.0,0.01138031]
[1767083053926,0.01800537,87884.0,87868.0,0.079804]
[1767083054110,0.01066122,87883.0,87868.0,0.01152]
[1767083054306,0.01066122,87882.0,87863.0,0.14044]
[1767083054559,0.01066122,87881.0,87866.0,0.01138096]
[1767083054710,0.01066122,87880.0,87868.0,0.0113807]
[1767083054912,0.01066122,87879.0,87867.0,0.01138083]
[1767083055113,0.01066122,87878.0,87868.0,0.1590807]
[1767083055280,0.00045348,87880.0,87868.0,0.1590807]
[1767083055517,0.01066187,87879.0,87871.0,0.01138031]
[1767083055722,0.00045348,87880.0,87872.0,0.01138018]
[1767083055944,4.8e-07,87880.0,87872.0,0.01138018]
[1767083056330,4.8e-07,87880.0,87869.0,0.01138057]
[1767083056549,4.8e-07,87880.0,87872.0,0.01138018]
[1767083057178,4.8e-07,87880.0,87871.0,0.01138031]
[1767083057591,4.8e-07,87880.0,87868.0,0.1590807]
[1767083057801,4.8e-07,87880.0,87872.0,0.01138018]
[1767083058028,4.8e-07,87880.0,87873.0,0.01138005]
[1767083058361,4.8e-07,87880.0,87874.0,0.01137993]
[1767083059097,4.8e-07,87880.0,87876.0,0.01137967]
[1767083059435,4.8e-07,87880.0,87874.0,0.01137993]
[1767083059659,4.8e-07,87880.0,87875.0,0.0113798]
[1767083060236,4.8e-07,87880.0,87874.0,0.01137993]
[1767083060576,4.8e-07,87880.0,87875.0,0.0113798]
[1767083060829,0.01152,87884.0,87875.0,0.0113798]
[1767083061481,0.01152,87884.0,87879.0,0.01137928]
[1767083061753,0.01820437,87883.0,87875.0,0.0113798]
[1767083062319,0.01820437,87883.0,87876.0,0.01137967]
[1767083062519,0.01152,87889.0,87876.0,0.01137967]
[1767083062801,0.0002,87892.0,87880.0,0.01137915]
[1767083062960,0.01066268,87891.0,87880.0,0.01137915]
[1767083063159,0.01066268,87890.0,87879.0,0.01137928]
[1767083063391,0.01172,87892.0,87879.0,0.01137928]
[1767083063594,0.01066284,87891.0,87879.0,0.06827518]
[1767083063799,0.01066284,87890.0,87879.0,0.06827518]
[1767083064012,0.01172,87892.0,87879.0,0.06827518]
[1767083064013,0.01172,87892.0,87881.0,0.06827403]
[1767083064325,0.01172,87892.0,87879.0,0.0568959]
[1767083064326,0.01066284,87891.0,87879.0,0.0568959]
[1767083064527,0.01066284,87890.0,87881.0,0.01137902]
[1767083064661,0.0002,87892.0,87886.0,0.01137837]
[1767083065024,0.0002,87892.0,87887.0,0.01137824]
[1767083065150,0.0002,87892.0,87886.0,0.01137837]
[1767083065948,0.0004,87899.0,87893.0,0.01137747]
[1767083066151,0.0004,87899.0,87895.0,0.01137721]
[1767083066402,0.0407069,87913.0,87892.0,0.06836258]
[1767083066403,4.42e-06,87908.0,87892.0,9.7e-05]
[1767083066609,0.0004,87943.0,87917.0,0.01137436]
[1767083066826,0.00034449,87917.0,87915.0,0.056873]
[1767083066996,0.00034449,87917.0,87913.0,0.01137488]
[1767083066997,0.01840437,87929.0,87918.0,0.01126674]
[1767083067203,0.00055,87918.0,87916.0,0.02289449]
[1767083067408,0.00055,87918.0,87916.0,0.01152]
[1767083067652,0.00075828,87926.0,87916.0,0.01152]
[1767083072243,0.00075828,87926.0,87909.0,0.14003]
[1767083072244,0.00075828,87926.0,87909.0,0.0002]
[1767083072442,0.00075828,87926.0,87912.0,0.01137501]
[1767083072643,0.00075828,87926.0,87909.0,0.0002]
[1767083073285,0.01820437,87915.0,87909.0,0.0002]
[1767083073704,0.01152,87925.0,87909.0,0.00015877]
[1767083073879,0.01152,87925.0,87915.0,0.000549]
[1767083074289,0.01152,87925.0,87909.0,0.00015877]
[1767083076329,0.00075828,87926.0,87909.0,0.00015877]
[1767083078562,0.00075828,87926.0,87910.0,0.1477]
[1767083078765,0.00075828,87926.0,87910.0,0.20457612]
[1767083078971,0.00075828,87926.0,87911.0,0.01137514]
[1767083079693,0.00075828,87926.0,87912.0,0.01137501]
[1767083079821,0.00075828,87926.0,87911.0,0.01137514]
[1767083080029,0.00075828,87926.0,87910.0,0.1477]
[1767083080348,0.00075828,87926.0,87910.0,0.15907527]
[1767083080552,0.00075828,87926.0,87910.0,0.1477]
[1767083081427,0.00075828,87926.0,87911.0,0.01137514]
[1767083082267,0.00075828,87926.0,87910.0,0.15907527]